[Event "Late-Titled-Tuesday-Blitz-February-13-2024"]
[Site "Chess.com"]
[Date "2024.02.13"]
[Round "5"]
[White "shirovin"]
[Black "InadaC"]
[Result "0-1"]
[WhiteElo "2094"]
[BlackElo "2232"]
[TimeControl "180+1"]
[EndTime "14:53:19 PST"]
[Termination "InadaC won by checkmate"]

1. e4 {[%clk 0:03:00.9]} 1... e6 {[%clk 0:02:55.6]} 2. d4 {[%clk 0:02:59.7]}
2... d5 {[%clk 0:02:56.2]} 3. Nc3 {[%clk 0:02:59.3]} 3... Nf6 {[%clk 0:02:55.8]}
4. Bg5 {[%clk 0:02:58.4]} 4... dxe4 {[%clk 0:02:55.3]} 5. Nxe4 {[%clk
0:02:57.2]} 5... Be7 {[%clk 0:02:55.8]} 6. Bxf6 {[%clk 0:02:55.5]} 6... gxf6
{[%clk 0:02:55.9]} 7. Nf3 {[%clk 0:02:55.1]} 7... f5 {[%clk 0:02:55.9]} 8. Nc3
{[%clk 0:02:36]} 8... Nc6 {[%clk 0:02:53.4]} 9. Bc4 {[%clk 0:02:26.6]} 9... Bf6
{[%clk 0:02:52.5]} 10. Qd3 {[%clk 0:01:50.1]} 10... Nxd4 {[%clk 0:02:29]} 11.
O-O-O {[%clk 0:01:45.1]} 11... c5 {[%clk 0:02:26.8]} 12. Nb5 {[%clk 0:01:35.1]}
12... Nxf3 {[%clk 0:02:21.3]} 13. Qxf3 {[%clk 0:01:23]} 13... Bg5+ {[%clk
0:02:20.3]} 14. Kb1 {[%clk 0:01:20.2]} 14... Qb6 {[%clk 0:02:18.6]} 15. Nd6+
{[%clk 0:01:10.8]} 15... Ke7 {[%clk 0:02:16]} 16. Rhe1 {[%clk 0:01:09]} 16...
Kf8 {[%clk 0:02:08.3]} 17. g4 {[%clk 0:00:55.7]} 17... Be7 {[%clk 0:02:05.1]}
18. Nxc8 {[%clk 0:00:51.4]} 18... Rxc8 {[%clk 0:02:04.1]} 19. gxf5 {[%clk
0:00:50.8]} 19... exf5 {[%clk 0:02:04.7]} 20. Qxf5 {[%clk 0:00:48.1]} 20... Bf6
{[%clk 0:01:41.4]} 21. Qxc8+ {[%clk 0:00:44.6]} 21... Kg7 {[%clk 0:01:41.1]} 22.
Qg4+ {[%clk 0:00:37.1]} 22... Kf8 {[%clk 0:01:41.2]} 23. Rd7 {[%clk 0:00:33.5]}
23... Qxb2# {[%clk 0:01:39.8]} 0-1

[Event "Late-Titled-Tuesday-Blitz-February-13-2024"]
[Site "Chess.com"]
[Date "2024.02.13"]
[Round "5"]
[White "Mikayel99"]
[Black "djano"]
[Result "0-1"]
[WhiteElo "2499"]
[BlackElo "2672"]
[TimeControl "180+1"]
[EndTime "14:53:32 PST"]
[Termination "djano won by resignation"]

1. e4 {[%clk 0:03:00.9]} 1... c5 {[%clk 0:02:59.4]} 2. Nf3 {[%clk 0:03:00.3]}
2... Nc6 {[%clk 0:02:59.6]} 3. b3 {[%clk 0:02:59.4]} 3... e5 {[%clk 0:02:59.1]}
4. Bb2 {[%clk 0:02:58.3]} 4... d6 {[%clk 0:02:59.6]} 5. Be2 {[%clk 0:02:57.4]}
5... Nf6 {[%clk 0:03:00.1]} 6. d3 {[%clk 0:02:57.2]} 6... Be7 {[%clk 0:03:00.7]}
7. O-O {[%clk 0:02:57.6]} 7... O-O {[%clk 0:03:01.3]} 8. h3 {[%clk 0:02:58]}
8... Ne8 {[%clk 0:02:53]} 9. Nbd2 {[%clk 0:02:57]} 9... f5 {[%clk 0:02:53.2]}
10. exf5 {[%clk 0:02:55.1]} 10... Bxf5 {[%clk 0:02:54.1]} 11. Nh2 {[%clk
0:02:54.4]} 11... Nf6 {[%clk 0:02:52.2]} 12. Ng4 {[%clk 0:02:53]} 12... Qe8
{[%clk 0:02:46.9]} 13. Nxf6+ {[%clk 0:02:45.6]} 13... Bxf6 {[%clk 0:02:47.1]}
14. Nc4 {[%clk 0:02:40.8]} 14... Rd8 {[%clk 0:02:44.9]} 15. Bf3 {[%clk
0:02:36.6]} 15... d5 {[%clk 0:02:40.6]} 16. Ne3 {[%clk 0:02:35.3]} 16... Be6
{[%clk 0:02:41.1]} 17. Ng4 {[%clk 0:02:21.4]} 17... Kh8 {[%clk 0:02:19.4]} 18.
Re1 {[%clk 0:02:12.2]} 18... Bxg4 {[%clk 0:02:16.5]} 19. Bxg4 {[%clk 0:02:11.8]}
19... Qf7 {[%clk 0:02:13.8]} 20. Qf3 {[%clk 0:02:05.5]} 20... e4 {[%clk
0:02:09.3]} 21. dxe4 {[%clk 0:02:00.1]} 21... Bxb2 {[%clk 0:02:08.8]} 22. Qxf7
{[%clk 0:02:00.3]} 22... Rxf7 {[%clk 0:02:09.7]} 23. Rad1 {[%clk 0:01:53.7]}
23... Bd4 {[%clk 0:02:09.2]} 24. Re2 {[%clk 0:01:48.7]} 24... Ne5 {[%clk
0:01:58.6]} 25. exd5 {[%clk 0:01:44.6]} 25... Nxg4 {[%clk 0:01:56.9]} 26. hxg4
{[%clk 0:01:45.5]} 26... h6 {[%clk 0:01:45.7]} 27. c4 {[%clk 0:01:38.5]} 27...
b5 {[%clk 0:01:43.4]} 28. g3 {[%clk 0:01:36.5]} 28... bxc4 {[%clk 0:01:40.3]}
29. bxc4 {[%clk 0:01:37.4]} 29... Rf3 {[%clk 0:01:37.5]} 30. Kg2 {[%clk
0:01:30]} 30... Rc3 {[%clk 0:01:37.3]} 31. Re6 {[%clk 0:01:24.4]} 31... Rxc4
{[%clk 0:01:35.1]} 32. d6 {[%clk 0:01:24.6]} 32... Rc2 {[%clk 0:01:34.3]} 33.
Rf1 {[%clk 0:01:19.2]} 33... Rxa2 {[%clk 0:01:26.3]} 34. g5 {[%clk 0:01:16.2]}
34... hxg5 {[%clk 0:01:25]} 35. Kh3 {[%clk 0:01:16.1]} 35... Rxf2 {[%clk
0:01:22.4]} 36. Rb1 {[%clk 0:01:13.8]} 36... Rf6 {[%clk 0:01:21.2]} 37. Rxf6
{[%clk 0:01:11.2]} 37... gxf6 {[%clk 0:01:22.1]} 0-1

[Event "Late-Titled-Tuesday-Blitz-February-13-2024"]
[Site "Chess.com"]
[Date "2024.02.13"]
[Round "5"]
[White "JoakimVonAnd"]
[Black "Beca95"]
[Result "0-1"]
[WhiteElo "2687"]
[BlackElo "2896"]
[TimeControl "180+1"]
[EndTime "14:53:35 PST"]
[Termination "Beca95 won by resignation"]

1. d4 {[%clk 0:03:00.9]} 1... Nf6 {[%clk 0:02:59.4]} 2. c4 {[%clk 0:03:00.4]}
2... e6 {[%clk 0:02:59.8]} 3. Nc3 {[%clk 0:02:59.9]} 3... c5 {[%clk 0:03:00.5]}
4. d5 {[%clk 0:02:59.8]} 4... exd5 {[%clk 0:03:01.3]} 5. cxd5 {[%clk 0:03:00.7]}
5... d6 {[%clk 0:03:01.6]} 6. Nf3 {[%clk 0:03:01.2]} 6... g6 {[%clk 0:03:02.1]}
7. Bf4 {[%clk 0:03:01.5]} 7... Bg7 {[%clk 0:03:02.4]} 8. e3 {[%clk 0:03:00.9]}
8... O-O {[%clk 0:03:02.1]} 9. h3 {[%clk 0:03:00.3]} 9... Ne8 {[%clk 0:03:02.3]}
10. Be2 {[%clk 0:02:57.1]} 10... Nd7 {[%clk 0:03:02.5]} 11. O-O {[%clk 0:02:57]}
11... Ne5 {[%clk 0:03:03]} 12. Bxe5 {[%clk 0:02:55.3]} 12... Bxe5 {[%clk
0:02:59.7]} 13. Nxe5 {[%clk 0:02:50.9]} 13... dxe5 {[%clk 0:03:00.6]} 14. Rc1
{[%clk 0:02:48.5]} 14... Nd6 {[%clk 0:02:58.3]} 15. Nb5 {[%clk 0:02:38.2]} 15...
Nxb5 {[%clk 0:02:57.8]} 16. Bxb5 {[%clk 0:02:39.1]} 16... Qd6 {[%clk 0:02:57.7]}
17. Qc2 {[%clk 0:02:35.5]} 17... a6 {[%clk 0:02:50.1]} 18. Be2 {[%clk
0:02:31.3]} 18... b6 {[%clk 0:02:50.2]} 19. b4 {[%clk 0:02:05.6]} 19... cxb4
{[%clk 0:02:50.1]} 20. Qc7 {[%clk 0:02:03.2]} 20... Rd8 {[%clk 0:02:48.4]} 21.
Rc6 {[%clk 0:01:54.6]} 21... Qxc7 {[%clk 0:02:37.5]} 22. Rxc7 {[%clk 0:01:55.5]}
22... Bd7 {[%clk 0:02:36.6]} 23. e4 {[%clk 0:01:42.7]} 23... a5 {[%clk
0:02:35.5]} 24. Rfc1 {[%clk 0:01:41.5]} 24... Kf8 {[%clk 0:02:32.3]} 25. Rb7
{[%clk 0:01:36.2]} 25... Rab8 {[%clk 0:02:21.8]} 26. Ra7 {[%clk 0:01:36.5]}
26... Rdc8 {[%clk 0:02:17.2]} 27. Rxc8+ {[%clk 0:01:30.2]} 27... Bxc8 {[%clk
0:02:16.8]} 28. Bb5 {[%clk 0:01:24.7]} 28... Bb7 {[%clk 0:02:16.5]} 29. Bc6
{[%clk 0:01:24.6]} 29... Bxc6 {[%clk 0:02:15.3]} 30. dxc6 {[%clk 0:01:25.5]}
30... Rc8 {[%clk 0:02:15.2]} 31. c7 {[%clk 0:01:25.3]} 31... Ke7 {[%clk
0:02:05.7]} 32. Rb7 {[%clk 0:01:24.4]} 32... Kd6 {[%clk 0:01:50.9]} 33. Rxb6+
{[%clk 0:01:22.7]} 33... Kc5 {[%clk 0:01:51.3]} 34. Rb7 {[%clk 0:01:21]} 34...
Kc6 {[%clk 0:01:48.3]} 35. Rb8 {[%clk 0:01:13.9]} 35... Rxc7 {[%clk 0:01:48.3]}
36. Kf1 {[%clk 0:01:13.7]} 36... Rb7 {[%clk 0:01:47.4]} 37. Re8 {[%clk
0:01:10.1]} 37... a4 {[%clk 0:01:43.9]} 38. Ke2 {[%clk 0:01:03.3]} 38... b3
{[%clk 0:01:43.6]} 39. axb3 {[%clk 0:01:04.2]} 39... axb3 {[%clk 0:01:44]} 40.
Rc8+ {[%clk 0:01:04.4]} 40... Kb5 {[%clk 0:01:40.8]} 41. Rc1 {[%clk 0:01:05.3]}
41... b2 {[%clk 0:01:39.8]} 42. Rb1 {[%clk 0:01:05.6]} 42... Kc4 {[%clk
0:01:40.1]} 43. Kd2 {[%clk 0:01:05.5]} 43... Kb3 {[%clk 0:01:40.4]} 0-1

[Event "Late-Titled-Tuesday-Blitz-February-13-2024"]
[Site "Chess.com"]
[Date "2024.02.13"]
[Round "5"]
[White "DeGrootteZ"]
[Black "GoldenShare"]
[Result "1-0"]
[WhiteElo "2830"]
[BlackElo "2551"]
[TimeControl "180+1"]
[EndTime "14:53:38 PST"]
[Termination "DeGrootteZ won by resignation"]

1. c4 {[%clk 0:03:00.9]} 1... e5 {[%clk 0:02:55.4]} 2. a3 {[%clk 0:03:00.5]}
2... Nc6 {[%clk 0:02:54.5]} 3. b4 {[%clk 0:02:59.9]} 3... Nf6 {[%clk 0:02:53.6]}
4. Bb2 {[%clk 0:02:58.9]} 4... d5 {[%clk 0:02:49.3]} 5. cxd5 {[%clk 0:02:59.8]}
5... Nxd5 {[%clk 0:02:49.5]} 6. d3 {[%clk 0:02:59.9]} 6... Bd6 {[%clk
0:02:47.9]} 7. Nf3 {[%clk 0:02:57.5]} 7... Qe7 {[%clk 0:02:43.9]} 8. Nbd2 {[%clk
0:02:55.3]} 8... Bd7 {[%clk 0:02:38.2]} 9. g3 {[%clk 0:02:48.8]} 9... f5 {[%clk
0:02:36.9]} 10. Bg2 {[%clk 0:02:47.5]} 10... e4 {[%clk 0:02:32.3]} 11. dxe4
{[%clk 0:02:47.3]} 11... fxe4 {[%clk 0:02:33.2]} 12. Nxe4 {[%clk 0:02:42.6]}
12... Qxe4 {[%clk 0:02:34.1]} 13. Nh4 {[%clk 0:02:42.8]} 13... Bxb4+ {[%clk
0:01:29.9]} 14. axb4 {[%clk 0:02:28.9]} 14... Qxb4+ {[%clk 0:01:29.3]} 15. Qd2
{[%clk 0:02:29.4]} 15... Qxd2+ {[%clk 0:01:24.5]} 16. Kxd2 {[%clk 0:02:30.3]}
16... Nb6 {[%clk 0:01:24.6]} 17. Bxg7 {[%clk 0:02:28.6]} 17... Rg8 {[%clk
0:01:20.6]} 18. Bf6 {[%clk 0:02:23.7]} 18... Kf7 {[%clk 0:01:16.7]} 19. Bc3
{[%clk 0:02:23.3]} 19... Rgd8 {[%clk 0:01:04.3]} 20. Kc2 {[%clk 0:02:21.2]}
20... Be6 {[%clk 0:01:03.1]} 21. Bxc6 {[%clk 0:02:15.5]} 21... bxc6 {[%clk
0:01:02.7]} 22. Rhd1 {[%clk 0:02:15.2]} 22... Nd5 {[%clk 0:00:56.7]} 23. e4
{[%clk 0:02:09.9]} 23... Nb6 {[%clk 0:00:51.5]} 24. Rxd8 {[%clk 0:02:07.7]}
24... Rxd8 {[%clk 0:00:51]} 25. Rxa7 {[%clk 0:02:07.7]} 25... Rd7 {[%clk
0:00:48.4]} 26. Nf3 {[%clk 0:02:04.6]} 26... Nc4 {[%clk 0:00:46]} 27. Ne5+
{[%clk 0:02:00.3]} 27... Nxe5 {[%clk 0:00:45.9]} 28. Bxe5 {[%clk 0:02:01.2]}
28... Bc4 {[%clk 0:00:38.6]} 29. Rxc7 {[%clk 0:02:00.4]} 29... Rxc7 {[%clk
0:00:38.4]} 30. Bxc7 {[%clk 0:02:01.3]} 30... Ke6 {[%clk 0:00:38.2]} 31. Kc3
{[%clk 0:01:59.6]} 31... Bf1 {[%clk 0:00:38.2]} 32. Kd4 {[%clk 0:01:57.3]} 32...
Bg2 {[%clk 0:00:38.5]} 33. f4 {[%clk 0:01:56.5]} 33... Bh3 {[%clk 0:00:38.8]}
34. f5+ {[%clk 0:01:55.5]} 34... Bxf5 {[%clk 0:00:35.2]} 35. exf5+ {[%clk
0:01:56.4]} 35... Kxf5 {[%clk 0:00:36]} 36. h4 {[%clk 0:01:52.8]} 36... h5
{[%clk 0:00:32.7]} 37. Kc5 {[%clk 0:01:53.3]} 1-0

[Event "Late-Titled-Tuesday-Blitz-February-13-2024"]
[Site "Chess.com"]
[Date "2024.02.13"]
[Round "5"]
[White "TheCavemanChess"]
[Black "TigrVShlyape"]
[Result "0-1"]
[WhiteElo "2672"]
[BlackElo "2868"]
[TimeControl "180+1"]
[EndTime "14:53:46 PST"]
[Termination "TigrVShlyape won by resignation"]

1. e4 {[%clk 0:02:48.8]} 1... e5 {[%clk 0:02:58.9]} 2. Nf3 {[%clk 0:02:48.7]}
2... Nc6 {[%clk 0:02:58.6]} 3. Bb5 {[%clk 0:02:49.4]} 3... g6 {[%clk 0:02:55.3]}
4. c3 {[%clk 0:02:49]} 4... Bg7 {[%clk 0:02:51.8]} 5. O-O {[%clk 0:02:49.4]}
5... d6 {[%clk 0:02:51.3]} 6. d4 {[%clk 0:02:48.4]} 6... Bd7 {[%clk 0:02:51.6]}
7. d5 {[%clk 0:02:45.8]} 7... Nce7 {[%clk 0:02:51.2]} 8. c4 {[%clk 0:02:40.6]}
8... h6 {[%clk 0:02:44.5]} 9. Nc3 {[%clk 0:02:38.7]} 9... f5 {[%clk 0:02:43.3]}
10. Re1 {[%clk 0:02:16]} 10... Nf6 {[%clk 0:02:42.2]} 11. Bxd7+ {[%clk
0:02:16.3]} 11... Qxd7 {[%clk 0:02:39.9]} 12. a4 {[%clk 0:02:01.9]} 12... O-O
{[%clk 0:02:34.9]} 13. a5 {[%clk 0:02:02.2]} 13... a6 {[%clk 0:02:30.2]} 14. Ra3
{[%clk 0:01:59.1]} 14... Kh7 {[%clk 0:02:25.3]} 15. exf5 {[%clk 0:01:41.8]}
15... gxf5 {[%clk 0:02:23.7]} 16. b4 {[%clk 0:01:41.3]} 16... Ng6 {[%clk
0:02:20.2]} 17. c5 {[%clk 0:01:32.3]} 17... Qf7 {[%clk 0:02:18.8]} 18. c6 {[%clk
0:01:25.8]} 18... bxc6 {[%clk 0:02:16.8]} 19. dxc6 {[%clk 0:01:26.7]} 19... Rab8
{[%clk 0:02:15.4]} 20. Ra4 {[%clk 0:00:32.8]} 20... Qc4 {[%clk 0:02:10.9]} 21.
Bd2 {[%clk 0:00:18.8]} 21... Qxc6 {[%clk 0:02:10]} 22. b5 {[%clk 0:00:18.2]}
22... axb5 {[%clk 0:02:09.1]} 23. Rb4 {[%clk 0:00:18.3]} 23... Qa6 {[%clk
0:02:07]} 24. Qb1 {[%clk 0:00:18.3]} 24... e4 {[%clk 0:02:02.4]} 25. Nd4 {[%clk
0:00:17.2]} 25... c5 {[%clk 0:02:02.5]} 26. Nxf5 {[%clk 0:00:16]} 26... cxb4
{[%clk 0:02:00.7]} 27. Nxe4 {[%clk 0:00:16.9]} 27... Nxe4 {[%clk 0:01:57.1]} 28.
Qxe4 {[%clk 0:00:17]} 28... Rbe8 {[%clk 0:01:54.1]} 29. Qb1 {[%clk 0:00:14.9]}
29... Rxe1+ {[%clk 0:01:53.1]} 30. Bxe1 {[%clk 0:00:15.8]} 30... Qxa5 {[%clk
0:01:50.6]} 31. Bxb4 {[%clk 0:00:14.3]} 31... Qa1 {[%clk 0:01:49.6]} 0-1

[Event "Late-Titled-Tuesday-Blitz-February-13-2024"]
[Site "Chess.com"]
[Date "2024.02.13"]
[Round "5"]
[White "deribas12345"]
[Black "dolynachess"]
[Result "1-0"]
[WhiteElo "2643"]
[BlackElo "2481"]
[TimeControl "180+1"]
[EndTime "14:53:49 PST"]
[Termination "deribas12345 won by resignation"]

1. d4 {[%clk 0:02:59.6]} 1... Nf6 {[%clk 0:02:56.3]} 2. c4 {[%clk 0:02:59.2]}
2... c5 {[%clk 0:02:56.8]} 3. d5 {[%clk 0:02:58.9]} 3... b5 {[%clk 0:02:57.2]}
4. e4 {[%clk 0:02:59.1]} 4... Nxe4 {[%clk 0:02:54.6]} 5. Qf3 {[%clk 0:02:58.8]}
5... Nd6 {[%clk 0:02:53.8]} 6. Nc3 {[%clk 0:02:58.3]} 6... b4 {[%clk 0:02:52.3]}
7. Nd1 {[%clk 0:02:57.8]} 7... g6 {[%clk 0:02:44.6]} 8. h4 {[%clk 0:02:57]} 8...
h5 {[%clk 0:02:39.9]} 9. Bd3 {[%clk 0:02:54.7]} 9... Bg7 {[%clk 0:02:39.3]} 10.
Nh3 {[%clk 0:02:54.2]} 10... O-O {[%clk 0:02:20.1]} 11. O-O {[%clk 0:02:53.6]}
11... a5 {[%clk 0:02:17.1]} 12. Re1 {[%clk 0:02:53]} 12... Ba6 {[%clk
0:02:10.2]} 13. Bg5 {[%clk 0:02:50.9]} 13... Re8 {[%clk 0:02:06.7]} 14. Ne3
{[%clk 0:02:37.3]} 14... Bxb2 {[%clk 0:01:55.8]} 15. Nf4 {[%clk 0:02:36.6]}
15... Kg7 {[%clk 0:01:37.6]} 16. Nxh5+ {[%clk 0:01:52.4]} 16... gxh5 {[%clk
0:01:35]} 17. Nf5+ {[%clk 0:01:36.6]} 17... Nxf5 {[%clk 0:01:32.2]} 18. Qxf5
{[%clk 0:01:36.8]} 18... Rh8 {[%clk 0:01:24.3]} 19. Bxe7 {[%clk 0:01:35]} 19...
Qxe7 {[%clk 0:00:40.5]} 20. Rxe7 {[%clk 0:01:33.4]} 20... Bf6 {[%clk 0:00:41.4]}
21. Rxf7+ {[%clk 0:01:29]} 21... Kxf7 {[%clk 0:00:40.9]} 22. Qg6+ {[%clk
0:01:29.1]} 1-0

[Event "Late-Titled-Tuesday-Blitz-February-13-2024"]
[Site "Chess.com"]
[Date "2024.02.13"]
[Round "5"]
[White "Bilan_Danila"]
[Black "JCVanDamme10"]
[Result "1-0"]
[WhiteElo "2535"]
[BlackElo "2307"]
[TimeControl "180+1"]
[EndTime "14:53:50 PST"]
[Termination "Bilan_Danila won by resignation"]

1. d4 {[%clk 0:03:00.9]} 1... d5 {[%clk 0:02:59]} 2. Nf3 {[%clk 0:03:01]} 2...
c6 {[%clk 0:02:58.8]} 3. c4 {[%clk 0:03:01]} 3... Nf6 {[%clk 0:02:58]} 4. Nc3
{[%clk 0:03:01]} 4... e6 {[%clk 0:02:57.2]} 5. Bg5 {[%clk 0:03:00.4]} 5... Nbd7
{[%clk 0:02:57.1]} 6. cxd5 {[%clk 0:03:00.3]} 6... exd5 {[%clk 0:02:56.1]} 7. e3
{[%clk 0:03:00.8]} 7... Bd6 {[%clk 0:02:55.1]} 8. Bd3 {[%clk 0:03:01.4]} 8...
O-O {[%clk 0:02:54.3]} 9. Qc2 {[%clk 0:03:00.5]} 9... Re8 {[%clk 0:02:53.6]} 10.
O-O {[%clk 0:03:00.7]} 10... h6 {[%clk 0:02:45.4]} 11. Bh4 {[%clk 0:02:59.8]}
11... Nf8 {[%clk 0:02:42.3]} 12. Rab1 {[%clk 0:02:53.5]} 12... a5 {[%clk
0:02:40.5]} 13. a3 {[%clk 0:02:53.5]} 13... g5 {[%clk 0:02:21.2]} 14. Bg3 {[%clk
0:02:49.3]} 14... Bxg3 {[%clk 0:02:21.1]} 15. hxg3 {[%clk 0:02:50.2]} 15... Ne6
{[%clk 0:02:20.4]} 16. b4 {[%clk 0:02:45.6]} 16... axb4 {[%clk 0:02:15.3]} 17.
axb4 {[%clk 0:02:46.5]} 17... Ra3 {[%clk 0:02:11.7]} 18. Ra1 {[%clk 0:02:36]}
18... Rxa1 {[%clk 0:02:07.6]} 19. Rxa1 {[%clk 0:02:36.9]} 19... Qd6 {[%clk
0:02:07.1]} 20. Ne5 {[%clk 0:02:24.9]} 20... Qxb4 {[%clk 0:02:02.7]} 21. f4
{[%clk 0:02:15.9]} 21... gxf4 {[%clk 0:01:48.8]} 22. gxf4 {[%clk 0:02:16.8]}
22... Nxf4 {[%clk 0:01:45.7]} 23. exf4 {[%clk 0:02:11.1]} 23... Qxd4+ {[%clk
0:01:45.5]} 24. Kh1 {[%clk 0:02:06.5]} 24... Qxf4 {[%clk 0:01:39]} 25. Nf3
{[%clk 0:01:48.9]} 25... Ng4 {[%clk 0:01:36.2]} 26. Rf1 {[%clk 0:01:11.1]} 26...
Qd4 {[%clk 0:01:23.9]} 27. Qd2 {[%clk 0:01:03.1]} 27... Kg7 {[%clk 0:01:17.4]}
28. Nxd4 {[%clk 0:01:02]} 1-0

[Event "Late-Titled-Tuesday-Blitz-February-13-2024"]
[Site "Chess.com"]
[Date "2024.02.13"]
[Round "5"]
[White "CFalcons8"]
[Black "yuriydovzik"]
[Result "1-0"]
[WhiteElo "2427"]
[BlackElo "2112"]
[TimeControl "180+1"]
[EndTime "14:53:50 PST"]
[Termination "CFalcons8 won by resignation"]

1. d4 {[%clk 0:02:59]} 1... e6 {[%clk 0:02:57.2]} 2. Nf3 {[%clk 0:02:55.7]} 2...
c5 {[%clk 0:02:52.8]} 3. e4 {[%clk 0:02:55.4]} 3... b6 {[%clk 0:02:44.6]} 4. d5
{[%clk 0:02:54.8]} 4... Nf6 {[%clk 0:02:31.7]} 5. Nc3 {[%clk 0:02:48.8]} 5...
Bb7 {[%clk 0:02:24.3]} 6. Bc4 {[%clk 0:02:47.7]} 6... a6 {[%clk 0:02:19]} 7. a4
{[%clk 0:02:47.4]} 7... exd5 {[%clk 0:02:08.5]} 8. exd5 {[%clk 0:02:46.6]} 8...
d6 {[%clk 0:02:03.6]} 9. O-O {[%clk 0:02:46.4]} 9... Be7 {[%clk 0:02:02.8]} 10.
Bf4 {[%clk 0:02:43.3]} 10... O-O {[%clk 0:02:00.8]} 11. Re1 {[%clk 0:02:41.6]}
11... Nbd7 {[%clk 0:01:52.8]} 12. h3 {[%clk 0:02:37.3]} 12... Re8 {[%clk
0:01:49.2]} 13. Qd3 {[%clk 0:02:35.5]} 13... Nf8 {[%clk 0:01:44.2]} 14. Re3
{[%clk 0:02:22.8]} 14... Ng6 {[%clk 0:01:42.7]} 15. Bh2 {[%clk 0:02:21.4]} 15...
Bf8 {[%clk 0:01:36.2]} 16. Rae1 {[%clk 0:02:21]} 16... Rxe3 {[%clk 0:01:33.7]}
17. Qxe3 {[%clk 0:02:21.9]} 17... Qd7 {[%clk 0:01:31.6]} 18. Qd3 {[%clk
0:02:18.6]} 18... Qc8 {[%clk 0:01:16.3]} 19. Ng5 {[%clk 0:02:14.6]} 19... Qd7
{[%clk 0:01:07.4]} 20. f4 {[%clk 0:01:50.2]} 20... Ne7 {[%clk 0:01:00.7]} 21. g4
{[%clk 0:01:21.9]} 21... g6 {[%clk 0:00:59.1]} 22. Nge4 {[%clk 0:01:18.8]} 22...
Bg7 {[%clk 0:00:56.3]} 23. Nxf6+ {[%clk 0:01:17.6]} 23... Bxf6 {[%clk
0:00:55.6]} 24. Ne4 {[%clk 0:01:18.5]} 24... Bd4+ {[%clk 0:00:51.5]} 25. Qxd4
{[%clk 0:01:17.7]} 25... cxd4 {[%clk 0:00:50.1]} 26. Nf6+ {[%clk 0:01:18]} 26...
Kg7 {[%clk 0:00:47.4]} 27. Nxd7 {[%clk 0:01:18.9]} 27... Rc8 {[%clk 0:00:46.1]}
1-0

[Event "Late-Titled-Tuesday-Blitz-February-13-2024"]
[Site "Chess.com"]
[Date "2024.02.13"]
[Round "5"]
[White "picturesquecheck"]
[Black "GlavkonVVS"]
[Result "0-1"]
[WhiteElo "2405"]
[BlackElo "2570"]
[TimeControl "180+1"]
[EndTime "14:53:52 PST"]
[Termination "GlavkonVVS won by resignation"]

1. e4 {[%clk 0:03:00.9]} 1... Nf6 {[%clk 0:02:59.8]} 2. e5 {[%clk 0:03:00.5]}
2... Nd5 {[%clk 0:02:59]} 3. c4 {[%clk 0:03:00.8]} 3... Nb6 {[%clk 0:02:59.1]}
4. a4 {[%clk 0:03:01.7]} 4... a5 {[%clk 0:02:59]} 5. d4 {[%clk 0:03:01.4]} 5...
d6 {[%clk 0:02:59.3]} 6. Nf3 {[%clk 0:03:01.6]} 6... Bg4 {[%clk 0:02:59]} 7. Be2
{[%clk 0:02:58.8]} 7... e6 {[%clk 0:02:59.3]} 8. O-O {[%clk 0:02:56.9]} 8... Be7
{[%clk 0:02:58.1]} 9. b3 {[%clk 0:02:56.9]} 9... Nc6 {[%clk 0:02:55.6]} 10. Bb2
{[%clk 0:02:56.2]} 10... dxe5 {[%clk 0:02:54.1]} 11. dxe5 {[%clk 0:02:47.5]}
11... O-O {[%clk 0:02:50.2]} 12. h3 {[%clk 0:02:47.3]} 12... Bf5 {[%clk
0:02:49.7]} 13. Nc3 {[%clk 0:02:41.6]} 13... Nb4 {[%clk 0:02:47]} 14. Nd4 {[%clk
0:02:36.5]} 14... Bg6 {[%clk 0:02:43.4]} 15. Bf3 {[%clk 0:02:35.6]} 15... Nd3
{[%clk 0:02:34.7]} 16. Bxb7 {[%clk 0:01:52.4]} 16... Nxb2 {[%clk 0:02:25.2]} 17.
Qg4 {[%clk 0:01:39.6]} 17... h5 {[%clk 0:02:20.1]} 18. Qf4 {[%clk 0:01:37]}
18... Nd3 {[%clk 0:02:15.9]} 19. Qe3 {[%clk 0:01:34.2]} 19... Bc5 {[%clk
0:02:09.3]} 20. Nxe6 {[%clk 0:00:59.3]} 20... fxe6 {[%clk 0:02:00.4]} 21. Qg3
{[%clk 0:00:49.2]} 21... Kh7 {[%clk 0:01:52.6]} 22. Bxa8 {[%clk 0:00:45.6]}
22... Qxa8 {[%clk 0:01:51.3]} 23. Kh2 {[%clk 0:00:35.2]} 23... Bd4 {[%clk
0:01:33.3]} 24. Nb5 {[%clk 0:00:26.2]} 24... Bxe5 {[%clk 0:01:30.7]} 25. f4
{[%clk 0:00:24.5]} 25... Rxf4 {[%clk 0:01:27.5]} 0-1